[Event "*** Titled Tuesday Blitz"]
[Site "Chess.com"]
[Date "2018.11.06"]
[Round "1"]
[White "Grieve72"]
[Black "KamilPlichta"]
[Result "1-0"]
[WhiteElo "2293"]
[BlackElo "2605"]
[TimeControl "180+2"]
[EndTime "13:09:04 PST"]
[Termination "Grieve72 won by resignation"]

1. d4 {[%clk 0:03:00.2]} 1... g6 {[%clk 0:02:59.9]} 2. Bd2 {[%clk 0:03:01.4]}
2... Bg7 {[%clk 0:03:00.6]} 3. Nf3 {[%clk 0:03:02.5]} 3... c5 {[%clk 0:03:01.6]}
4. e3 {[%clk 0:03:03.6]} 4... Nf6 {[%clk 0:03:00.6]} 5. Bd3 {[%clk 0:03:03.5]}
5... O-O {[%clk 0:02:58.5]} 6. O-O {[%clk 0:03:03.6]} 6... d5 {[%clk 0:02:59.1]}
7. c3 {[%clk 0:03:02.3]} 7... b6 {[%clk 0:02:55.9]} 8. Re1 {[%clk 0:02:49.8]}
8... Nc6 {[%clk 0:02:51.5]} 9. b4 {[%clk 0:02:40.2]} 9... c4 {[%clk 0:02:46.5]}
10. Bc2 {[%clk 0:02:39.9]} 10... Bf5 {[%clk 0:02:46.9]} 11. a4 {[%clk
0:02:36.2]} 11... Bxc2 {[%clk 0:02:34.7]} 12. Qxc2 {[%clk 0:02:38.1]} 12... Ne4
{[%clk 0:02:36.2]} 13. Bc1 {[%clk 0:02:31.8]} 13... f5 {[%clk 0:02:24.3]} 14.
Nfd2 {[%clk 0:02:22]} 14... e6 {[%clk 0:02:23.3]} 15. f3 {[%clk 0:02:22]} 15...
Nd6 {[%clk 0:02:12.8]} 16. Ba3 {[%clk 0:02:20]} 16... b5 {[%clk 0:02:12.7]} 17.
Kh1 {[%clk 0:02:10.1]} 17... e5 {[%clk 0:02:07.6]} 18. Bc1 {[%clk 0:02:04.3]}
18... Qh4 {[%clk 0:01:57.2]} 19. Qd1 {[%clk 0:01:57.4]} 19... exd4 {[%clk
0:01:54.6]} 20. exd4 {[%clk 0:01:55.7]} 20... Rfe8 {[%clk 0:01:55.8]} 21. Rf1
{[%clk 0:01:50.2]} 21... f4 {[%clk 0:01:41]} 22. axb5 {[%clk 0:01:41.7]} 22...
Nf5 {[%clk 0:01:42]} 23. bxc6 {[%clk 0:01:07]} 23... Ng3+ {[%clk 0:01:32.5]} 24.
Kg1 {[%clk 0:01:08.3]} 24... Re6 {[%clk 0:00:53.7]} 25. Re1 {[%clk 0:00:45.3]}
25... Rae8 {[%clk 0:00:54.4]} 26. Rxe6 {[%clk 0:00:40.3]} 26... Rxe6 {[%clk
0:00:55.5]} 27. c7 {[%clk 0:00:38.8]} 27... Re8 {[%clk 0:00:52.1]} 28. hxg3
{[%clk 0:00:31.8]} 28... fxg3 {[%clk 0:00:53.1]} 29. Nf1 {[%clk 0:00:32.8]}
29... Bf8 {[%clk 0:00:36.6]} 30. Rxa7 {[%clk 0:00:27.6]} 30... g5 {[%clk
0:00:30]} 31. Rb7 {[%clk 0:00:22.6]} 31... Bd6 {[%clk 0:00:30.8]} 32. Rb8 {[%clk
0:00:20.5]} 32... Rxb8 {[%clk 0:00:30.9]} 33. cxb8=Q+ {[%clk 0:00:22.4]} 33...
Bxb8 {[%clk 0:00:32.6]} 34. Nbd2 {[%clk 0:00:22.2]} 34... Bf4 {[%clk 0:00:29]}
35. Qe2 {[%clk 0:00:21.6]} 35... Kf7 {[%clk 0:00:29.2]} 36. b5 {[%clk
0:00:22.6]} 36... h5 {[%clk 0:00:29.8]} 37. b6 {[%clk 0:00:23.7]} 37... g4
{[%clk 0:00:31.4]} 38. b7 {[%clk 0:00:24]} 38... Qd8 {[%clk 0:00:32.1]} 39. fxg4
{[%clk 0:00:22.3]} 39... h4 {[%clk 0:00:33.5]} 40. Qf3 {[%clk 0:00:21.7]} 40...
Qf6 {[%clk 0:00:34.4]} 41. Qxd5+ {[%clk 0:00:21.8]} 41... Kg7 {[%clk 0:00:34.6]}
42. Qd7+ {[%clk 0:00:21.4]} 42... Kh6 {[%clk 0:00:33.9]} 43. Ne4 {[%clk
0:00:19.5]} 43... Qf8 {[%clk 0:00:28.1]} 44. g5+ {[%clk 0:00:16.6]} 44... Kh5
{[%clk 0:00:27.9]} 45. Nf6+ {[%clk 0:00:13]} 45... Kxg5 {[%clk 0:00:28.8]} 46.
Bxf4+ {[%clk 0:00:13.3]} 46... Kxf4 {[%clk 0:00:30.1]} 47. Qc7+ {[%clk
0:00:13.2]} 47... Kf5 {[%clk 0:00:27]} 48. Qe5+ {[%clk 0:00:12.7]} 48... Kg6
{[%clk 0:00:28.1]} 49. Qe8+ {[%clk 0:00:12.6]} 1-0

[Event "*** Titled Tuesday Blitz"]
[Site "Chess.com"]
[Date "2018.11.06"]
[Round "1"]
[White "ahachess"]
[Black "MITerryble"]
[Result "0-1"]
[WhiteElo "2385"]
[BlackElo "2749"]
[TimeControl "180+2"]
[EndTime "13:09:08 PST"]
[Termination "MITerryble won by resignation"]

1. d4 {[%clk 0:02:58.7]} 1... e6 {[%clk 0:02:55.6]} 2. c4 {[%clk 0:02:58.2]}
2... Bb4+ {[%clk 0:02:56.1]} 3. Bd2 {[%clk 0:02:58.1]} 3... c5 {[%clk
0:02:55.7]} 4. d5 {[%clk 0:02:53.8]} 4... Nf6 {[%clk 0:02:46.4]} 5. Nc3 {[%clk
0:02:37.7]} 5... O-O {[%clk 0:02:41.8]} 6. Nf3 {[%clk 0:02:38]} 6... d6 {[%clk
0:02:39.7]} 7. g3 {[%clk 0:02:37.6]} 7... exd5 {[%clk 0:02:37.4]} 8. cxd5 {[%clk
0:02:38]} 8... Re8 {[%clk 0:02:36.3]} 9. Bg2 {[%clk 0:02:38.1]} 9... Na6 {[%clk
0:02:25.6]} 10. O-O {[%clk 0:02:37.5]} 10... Nc7 {[%clk 0:02:26.2]} 11. Bg5
{[%clk 0:01:45.8]} 11... h6 {[%clk 0:02:26.2]} 12. Bd2 {[%clk 0:01:34.9]} 12...
Ncxd5 {[%clk 0:02:19]} 13. Nxd5 {[%clk 0:01:33.4]} 13... Nxd5 {[%clk 0:02:19.9]}
14. a3 {[%clk 0:01:33.7]} 14... Bxd2 {[%clk 0:02:17.1]} 15. Qxd2 {[%clk
0:01:34.8]} 15... Nf6 {[%clk 0:02:18.2]} 16. Rfd1 {[%clk 0:01:35.7]} 16... d5
{[%clk 0:02:17.3]} 17. e3 {[%clk 0:01:34.8]} 17... Be6 {[%clk 0:02:14.2]} 18. b4
{[%clk 0:01:34.7]} 18... b6 {[%clk 0:02:10.2]} 19. Rac1 {[%clk 0:01:34.5]} 19...
Rc8 {[%clk 0:02:10.1]} 20. Qb2 {[%clk 0:01:19.9]} 20... Qe7 {[%clk 0:02:08]} 21.
Ne1 {[%clk 0:01:02.6]} 21... Bg4 {[%clk 0:01:59.2]} 22. Rd2 {[%clk 0:00:52]}
22... d4 {[%clk 0:02:00]} 23. Nc2 {[%clk 0:00:41.5]} 23... Ne4 {[%clk
0:01:55.3]} 24. Bxe4 {[%clk 0:00:33.3]} 24... Qxe4 {[%clk 0:01:57.2]} 25. exd4
{[%clk 0:00:34.2]} 25... Bh3 {[%clk 0:01:45.5]} 26. Ne3 {[%clk 0:00:34.5]} 26...
cxd4 {[%clk 0:01:25.1]} 27. Rxc8 {[%clk 0:00:30.8]} 27... Rxc8 {[%clk 0:01:27]}
28. Rxd4 {[%clk 0:00:28.3]} 28... Qb7 {[%clk 0:01:03.4]} 29. Qd2 {[%clk
0:00:25.7]} 29... Qc7 {[%clk 0:00:49.9]} 30. f3 {[%clk 0:00:19.4]} 30... Be6
{[%clk 0:00:49.5]} 31. Kf2 {[%clk 0:00:20]} 31... Re8 {[%clk 0:00:36.8]} 32. h4
{[%clk 0:00:21]} 32... Qc6 {[%clk 0:00:37.4]} 33. Rd8 {[%clk 0:00:21.5]} 33...
Rxd8 {[%clk 0:00:36]} 34. Qxd8+ {[%clk 0:00:23.4]} 34... Kh7 {[%clk 0:00:37.7]}
35. Qd3+ {[%clk 0:00:24.4]} 35... Kg8 {[%clk 0:00:38.6]} 36. Ng4 {[%clk
0:00:25]} 36... Qc7 {[%clk 0:00:32.3]} 37. Qe2 {[%clk 0:00:21.5]} 37... Qc3
{[%clk 0:00:30.8]} 38. Ne5 {[%clk 0:00:21.6]} 38... Qxa3 {[%clk 0:00:31.1]} 39.
b5 {[%clk 0:00:21.2]} 39... Qc5+ {[%clk 0:00:31.7]} 40. Kg2 {[%clk 0:00:21.9]}
40... Qc7 {[%clk 0:00:07.1]} 41. g4 {[%clk 0:00:22.7]} 41... Qc5 {[%clk
0:00:07.8]} 42. Nc6 {[%clk 0:00:22.8]} 42... a5 {[%clk 0:00:07.7]} 43. Ne7+
{[%clk 0:00:23.3]} 43... Qxe7 {[%clk 0:00:08.5]} 44. Qd2 {[%clk 0:00:23.4]}
44... Qc5 {[%clk 0:00:09.5]} 45. Qf4 {[%clk 0:00:24.1]} 45... Qxb5 {[%clk
0:00:09.5]} 46. Qb8+ {[%clk 0:00:25.2]} 46... Kh7 {[%clk 0:00:10.7]} 47. g5
{[%clk 0:00:25.4]} 47... hxg5 {[%clk 0:00:11.5]} 48. h5 {[%clk 0:00:26.9]} 48...
Qb2+ {[%clk 0:00:12.1]} 49. Kg3 {[%clk 0:00:28.3]} 49... Qf6 {[%clk 0:00:14]}
50. Qd6 {[%clk 0:00:27.8]} 50... Qf4+ {[%clk 0:00:15]} 51. Qxf4 {[%clk
0:00:28.9]} 51... gxf4+ {[%clk 0:00:16.9]} 52. Kxf4 {[%clk 0:00:30.8]} 52... a4
{[%clk 0:00:18.7]} 53. Ke4 {[%clk 0:00:32.1]} 53... a3 {[%clk 0:00:20.6]} 0-1

[Event "*** Titled Tuesday Blitz"]
[Site "Chess.com"]
[Date "2018.11.06"]
[Round "1"]
[White "Haykos"]
[Black "MishkaFighter"]
[Result "0-1"]
[WhiteElo "2516"]
[BlackElo "2332"]
[TimeControl "180+2"]
[EndTime "13:09:13 PST"]
[Termination "MishkaFighter won by resignation"]

1. e4 {[%clk 0:03:00]} 1... d6 {[%clk 0:03:00.5]} 2. Nc3 {[%clk 0:03:00.7]} 2...
Nf6 {[%clk 0:03:01.4]} 3. Bc4 {[%clk 0:03:01]} 3... g6 {[%clk 0:02:59.1]} 4. d3
{[%clk 0:03:01.1]} 4... Bg7 {[%clk 0:02:59.5]} 5. Be3 {[%clk 0:03:02.4]} 5...
Ng4 {[%clk 0:02:57]} 6. Bd2 {[%clk 0:02:59.8]} 6... c6 {[%clk 0:02:54.8]} 7. a4
{[%clk 0:02:59.1]} 7... Qb6 {[%clk 0:02:53.5]} 8. Nh3 {[%clk 0:02:53.6]} 8...
Ne5 {[%clk 0:02:48.5]} 9. a5 {[%clk 0:02:12.3]} 9... Qc7 {[%clk 0:02:40.5]} 10.
Bb3 {[%clk 0:02:06.9]} 10... Bg4 {[%clk 0:02:39.2]} 11. f3 {[%clk 0:01:52.4]}
11... Nxf3+ {[%clk 0:02:20.8]} 12. gxf3 {[%clk 0:01:53.3]} 12... Bxh3 {[%clk
0:02:22.2]} 13. Qe2 {[%clk 0:01:38.6]} 13... Nd7 {[%clk 0:02:20]} 14. f4 {[%clk
0:01:30.6]} 14... Nc5 {[%clk 0:02:12]} 15. Bc4 {[%clk 0:01:30.4]} 15... Rb8
{[%clk 0:02:03.3]} 16. Qf3 {[%clk 0:01:04]} 16... Be6 {[%clk 0:01:42.7]} 17. Bd5
{[%clk 0:00:57]} 17... cxd5 {[%clk 0:01:39.2]} 18. exd5 {[%clk 0:00:45.4]} 18...
Bf5 {[%clk 0:01:35]} 19. O-O {[%clk 0:00:42.7]} 19... O-O {[%clk 0:01:34.1]} 20.
Nb5 {[%clk 0:00:31.5]} 20... Qd7 {[%clk 0:01:30.3]} 21. Nc3 {[%clk 0:00:32]}
21... Rbc8 {[%clk 0:01:24]} 22. Rae1 {[%clk 0:00:31.1]} 22... Rfe8 {[%clk
0:01:15.3]} 23. Re2 {[%clk 0:00:28.2]} 23... Bg4 {[%clk 0:01:16.1]} 24. Qf2
{[%clk 0:00:26.5]} 24... Bxe2 {[%clk 0:01:17.2]} 25. Qxe2 {[%clk 0:00:28.1]}
25... e6 {[%clk 0:01:15]} 26. Qg2 {[%clk 0:00:28.1]} 26... exd5 {[%clk
0:01:11.8]} 27. Nxd5 {[%clk 0:00:30]} 27... Na4 {[%clk 0:00:49.7]} 28. b3 {[%clk
0:00:28.6]} 28... Nc3 {[%clk 0:00:40.4]} 29. Bxc3 {[%clk 0:00:28.6]} 29... Bxc3
{[%clk 0:00:38.6]} 30. f5 {[%clk 0:00:30.5]} 30... Bd4+ {[%clk 0:00:39.3]} 31.
Kh1 {[%clk 0:00:30.6]} 31... Kh8 {[%clk 0:00:29.2]} 32. c4 {[%clk 0:00:28.2]}
32... Bg7 {[%clk 0:00:26.6]} 33. f6 {[%clk 0:00:25.1]} 33... Bf8 {[%clk
0:00:26.8]} 34. h4 {[%clk 0:00:23]} 34... Re5 {[%clk 0:00:27.6]} 35. d4 {[%clk
0:00:20.8]} 35... Rh5 {[%clk 0:00:26.3]} 36. Rf4 {[%clk 0:00:21.9]} 36... Re8
{[%clk 0:00:24.8]} 37. Kg1 {[%clk 0:00:22.7]} 37... Bh6 {[%clk 0:00:24.2]} 38.
Rg4 {[%clk 0:00:23.1]} 38... Qe6 {[%clk 0:00:19.6]} 39. Kh2 {[%clk 0:00:20.2]}
39... Qe2 {[%clk 0:00:19.2]} 40. Ne7 {[%clk 0:00:21.2]} 40... Qxg2+ {[%clk
0:00:19.6]} 41. Kxg2 {[%clk 0:00:23.1]} 41... Bf8 {[%clk 0:00:17.2]} 42. Nd5
{[%clk 0:00:24.2]} 42... Rf5 {[%clk 0:00:16.2]} 43. Kg3 {[%clk 0:00:24.3]} 43...
h5 {[%clk 0:00:17.4]} 44. Rg5 {[%clk 0:00:23.8]} 44... Rxg5+ {[%clk 0:00:18]}
45. hxg5 {[%clk 0:00:25.7]} 45... Re2 {[%clk 0:00:19]} 46. Kf4 {[%clk
0:00:26.8]} 46... Rb2 {[%clk 0:00:19.8]} 47. b4 {[%clk 0:00:28.3]} 47... Rc2
{[%clk 0:00:18.5]} 48. c5 {[%clk 0:00:29.4]} 48... dxc5 {[%clk 0:00:20.4]} 49.
bxc5 {[%clk 0:00:30.9]} 49... Bxc5 {[%clk 0:00:20.4]} 50. dxc5 {[%clk
0:00:32.1]} 50... Rxc5 {[%clk 0:00:22.3]} 51. Ke5 {[%clk 0:00:33.6]} 51... Rxa5
{[%clk 0:00:22.9]} 52. Kd6 {[%clk 0:00:35.2]} 52... Rxd5+ {[%clk 0:00:23.3]} 53.
Kxd5 {[%clk 0:00:36.6]} 53... h4 {[%clk 0:00:23.7]} 54. Ke4 {[%clk 0:00:37.9]}
54... a5 {[%clk 0:00:25]} 55. Kf4 {[%clk 0:00:39.4]} 55... a4 {[%clk 0:00:26.4]}
56. Kg4 {[%clk 0:00:41]} 56... a3 {[%clk 0:00:27.9]} 57. Kxh4 {[%clk 0:00:42.7]}
57... a2 {[%clk 0:00:29.5]} 0-1

[Event "*** Titled Tuesday Blitz"]
[Site "Chess.com"]
[Date "2018.11.06"]
[Round "1"]
[White "PrascaR"]
[Black "mouseWLZ"]
[Result "1-0"]
[WhiteElo "2533"]
[BlackElo "2194"]
[TimeControl "180+2"]
[EndTime "13:09:17 PST"]
[Termination "PrascaR won by resignation"]

1. e4 {[%clk 0:03:01.9]} 1... e6 {[%clk 0:03:01]} 2. d4 {[%clk 0:03:02.5]} 2...
d5 {[%clk 0:03:02.2]} 3. Nc3 {[%clk 0:02:58.2]} 3... Nf6 {[%clk 0:03:02.7]} 4.
e5 {[%clk 0:02:59]} 4... Nfd7 {[%clk 0:03:03.8]} 5. f4 {[%clk 0:03:00.4]} 5...
c5 {[%clk 0:03:05]} 6. Nf3 {[%clk 0:03:01.6]} 6... Nc6 {[%clk 0:03:06.3]} 7. Be3
{[%clk 0:03:01.6]} 7... Be7 {[%clk 0:03:07.6]} 8. Qd2 {[%clk 0:03:02.5]} 8...
O-O {[%clk 0:03:06.2]} 9. g3 {[%clk 0:02:56.5]} 9... a6 {[%clk 0:02:54.2]} 10.
Bg2 {[%clk 0:02:53.5]} 10... Nb6 {[%clk 0:02:41.8]} 11. b3 {[%clk 0:02:23.8]}
11... cxd4 {[%clk 0:02:39]} 12. Nxd4 {[%clk 0:02:23.4]} 12... Bb4 {[%clk
0:02:38.2]} 13. a3 {[%clk 0:02:21.9]} 13... Be7 {[%clk 0:02:12.1]} 14. O-O
{[%clk 0:02:17.7]} 14... Bd7 {[%clk 0:02:05.9]} 15. Nce2 {[%clk 0:02:16.4]}
15... Rc8 {[%clk 0:02:03.3]} 16. h3 {[%clk 0:01:54.7]} 16... Qc7 {[%clk
0:01:51.9]} 17. Kh2 {[%clk 0:01:45]} 17... f6 {[%clk 0:01:45.3]} 18. Nxc6 {[%clk
0:01:42.6]} 18... bxc6 {[%clk 0:01:44]} 19. Bd4 {[%clk 0:01:09.8]} 19... c5
{[%clk 0:01:40.5]} 20. exf6 {[%clk 0:01:08.2]} 20... gxf6 {[%clk 0:01:33.3]} 21.
Bb2 {[%clk 0:01:07.3]} 21... d4 {[%clk 0:01:33.4]} 22. Rae1 {[%clk 0:00:50.9]}
22... Rcd8 {[%clk 0:01:24.2]} 23. Ng1 {[%clk 0:00:51.2]} 23... Kh8 {[%clk
0:01:17.9]} 24. Nf3 {[%clk 0:00:51.8]} 24... Bc8 {[%clk 0:01:15.3]} 25. c3
{[%clk 0:00:49.2]} 25... c4 {[%clk 0:00:47.7]} 26. cxd4 {[%clk 0:00:46.6]} 26...
cxb3 {[%clk 0:00:48.7]} 27. Nh4 {[%clk 0:00:33.5]} 27... Qd7 {[%clk 0:00:34.7]}
28. Qe2 {[%clk 0:00:30.1]} 28... Na4 {[%clk 0:00:33.8]} 29. Rb1 {[%clk
0:00:25.3]} 29... Nxb2 {[%clk 0:00:34.2]} 30. Rxb2 {[%clk 0:00:27.2]} 30... Qxd4
{[%clk 0:00:30.5]} 31. Rxb3 {[%clk 0:00:27.5]} 31... Qd2 {[%clk 0:00:30.6]} 32.
Qh5 {[%clk 0:00:27.7]} 32... Rg8 {[%clk 0:00:30]} 33. Rb8 {[%clk 0:00:21.2]}
33... Bd7 {[%clk 0:00:22.6]} 34. Rb7 {[%clk 0:00:21.4]} 34... Rg7 {[%clk
0:00:21.2]} 35. Nf3 {[%clk 0:00:19.4]} 35... Qd5 {[%clk 0:00:19.8]} 36. Ne5
{[%clk 0:00:19.6]} 36... Qxb7 {[%clk 0:00:08.6]} 37. Bxb7 {[%clk 0:00:13.7]}
37... fxe5 {[%clk 0:00:10]} 38. fxe5 {[%clk 0:00:15.6]} 38... Bb5 {[%clk
0:00:10.9]} 39. Rf2 {[%clk 0:00:16.1]} 39... Bc5 {[%clk 0:00:10.5]} 40. Rc2
{[%clk 0:00:17.2]} 40... Bb6 {[%clk 0:00:08.3]} 41. Bf3 {[%clk 0:00:17.2]} 41...
Rdg8 {[%clk 0:00:07.2]} 42. Bg4 {[%clk 0:00:18.1]} 42... Bd3 {[%clk 0:00:07.3]}
43. Rd2 {[%clk 0:00:18.4]} 43... Bg6 {[%clk 0:00:08.4]} 44. Qh6 {[%clk
0:00:19.6]} 44... Re7 {[%clk 0:00:09]} 45. Qg5 {[%clk 0:00:20.2]} 45... Rge8
{[%clk 0:00:07.7]} 46. Qf6+ {[%clk 0:00:21.1]} 46... Kg8 {[%clk 0:00:09.2]} 47.
h4 {[%clk 0:00:22.4]} 47... Rf7 {[%clk 0:00:10.7]} 48. Bxe6 {[%clk 0:00:23.4]}
48... Be3 {[%clk 0:00:07.9]} 49. Bxf7+ {[%clk 0:00:23.4]} 49... Bxf7 {[%clk
0:00:09.8]} 50. Rd7 {[%clk 0:00:23.7]} 50... Rf8 {[%clk 0:00:10.9]} 51. e6
{[%clk 0:00:24.7]} 1-0

[Event "*** Titled Tuesday Blitz"]
[Site "Chess.com"]
[Date "2018.11.06"]
[Round "1"]
[White "tioloko"]
[Black "paladin_ll"]
[Result "1-0"]
[WhiteElo "2529"]
[BlackElo "2165"]
[TimeControl "180+2"]
[EndTime "13:09:19 PST"]
[Termination "tioloko won by resignation"]

1. Nf3 {[%clk 0:02:40.5]} 1... Nf6 {[%clk 0:03:00.6]} 2. g3 {[%clk 0:02:41.2]}
2... g6 {[%clk 0:03:01.2]} 3. Bg2 {[%clk 0:02:43.1]} 3... c5 {[%clk 0:03:02.8]}
4. O-O {[%clk 0:02:44.6]} 4... Bg7 {[%clk 0:03:03.9]} 5. c3 {[%clk 0:02:44.9]}
5... O-O {[%clk 0:03:04.2]} 6. d4 {[%clk 0:02:45.6]} 6... cxd4 {[%clk
0:03:05.5]} 7. Nxd4 {[%clk 0:02:47.5]} 7... Nc6 {[%clk 0:03:05.9]} 8. Na3 {[%clk
0:02:46.3]} 8... d5 {[%clk 0:03:03.4]} 9. Nac2 {[%clk 0:02:45.2]} 9... Bg4
{[%clk 0:02:57.5]} 10. h3 {[%clk 0:02:42]} 10... Bd7 {[%clk 0:02:58.3]} 11. Nb3
{[%clk 0:02:41.7]} 11... e6 {[%clk 0:02:51.8]} 12. Nc5 {[%clk 0:02:41.3]} 12...
b6 {[%clk 0:02:50.3]} 13. Nxd7 {[%clk 0:02:41.7]} 13... Qxd7 {[%clk 0:02:48.4]}
14. Nd4 {[%clk 0:02:39.4]} 14... Nxd4 {[%clk 0:02:48.5]} 15. Qxd4 {[%clk
0:02:33.7]} 15... Rac8 {[%clk 0:02:42.7]} 16. Bg5 {[%clk 0:02:29.2]} 16... Ne4
{[%clk 0:02:33.8]} 17. Qe3 {[%clk 0:02:30.1]} 17... Nxg5 {[%clk 0:02:34.2]} 18.
Qxg5 {[%clk 0:02:32]} 18... Qd8 {[%clk 0:02:33.7]} 19. Qd2 {[%clk 0:02:30.7]}
19... Qc7 {[%clk 0:02:30.3]} 20. Rfd1 {[%clk 0:02:29.5]} 20... b5 {[%clk
0:02:29]} 21. a3 {[%clk 0:02:25.1]} 21... a5 {[%clk 0:02:29.4]} 22. a4 {[%clk
0:02:23]} 22... b4 {[%clk 0:02:27.3]} 23. cxb4 {[%clk 0:02:21]} 23... axb4
{[%clk 0:02:28.5]} 24. Rdc1 {[%clk 0:02:22.1]} 24... Qa5 {[%clk 0:02:20.5]} 25.
Rxc8 {[%clk 0:02:13.1]} 25... Rxc8 {[%clk 0:02:20.4]} 26. e4 {[%clk 0:02:15]}
26... d4 {[%clk 0:02:17.2]} 27. Bf1 {[%clk 0:02:13.7]} 27... Rc5 {[%clk
0:01:54.6]} 28. Kg2 {[%clk 0:02:05.8]} 28... Qb6 {[%clk 0:01:48.1]} 29. Bb5
{[%clk 0:02:04.4]} 29... Qa5 {[%clk 0:01:35.2]} 30. Rc1 {[%clk 0:02:03]} 30...
Rxc1 {[%clk 0:01:27.1]} 31. Qxc1 {[%clk 0:02:04.9]} 31... h5 {[%clk 0:01:20.1]}
32. Qc8+ {[%clk 0:02:03.7]} 32... Bf8 {[%clk 0:01:11.9]} 33. Qd7 {[%clk
0:02:05.6]} 33... Qb6 {[%clk 0:01:06.8]} 34. b3 {[%clk 0:01:56.6]} 34... Kg7
{[%clk 0:01:03.5]} 35. Bc4 {[%clk 0:01:56.8]} 35... Bc5 {[%clk 0:00:58.3]} 36.
Kf1 {[%clk 0:01:48.6]} 36... d3 {[%clk 0:00:56.4]} 37. Qxd3 {[%clk 0:01:30]}
37... Bxf2 {[%clk 0:00:56]} 38. a5 {[%clk 0:01:31.4]} 38... Qa7 {[%clk 0:00:54]}
39. a6 {[%clk 0:01:16.2]} 39... Bd4 {[%clk 0:00:44.2]} 40. Kg2 {[%clk 0:01:13]}
40... Qc5 {[%clk 0:00:40.3]} 41. Qf3 {[%clk 0:01:12.1]} 41... Qe5 {[%clk
0:00:21.6]} 42. h4 {[%clk 0:01:07.5]} 42... Ba7 {[%clk 0:00:20.1]} 43. Kh3
{[%clk 0:01:06.6]} 43... Qd4 {[%clk 0:00:18.7]} 44. Qg2 {[%clk 0:00:58.5]} 44...
Qf2 {[%clk 0:00:18.3]} 45. Qxf2 {[%clk 0:00:51.2]} 45... Bxf2 {[%clk 0:00:20.2]}
46. Kg2 {[%clk 0:00:53.1]} 46... Ba7 {[%clk 0:00:20.4]} 47. Kf3 {[%clk 0:00:55]}
47... Kf6 {[%clk 0:00:21.5]} 48. Kf4 {[%clk 0:00:55.7]} 48... e5+ {[%clk
0:00:21.4]} 49. Kf3 {[%clk 0:00:56.7]} 49... Ke7 {[%clk 0:00:22.4]} 50. g4
{[%clk 0:00:56.6]} 50... hxg4+ {[%clk 0:00:23.2]} 51. Kxg4 {[%clk 0:00:57.7]}
51... f6 {[%clk 0:00:24.5]} 52. Bb5 {[%clk 0:00:56.4]} 52... Ke6 {[%clk
0:00:23.8]} 53. Be8 {[%clk 0:00:57.4]} 53... f5+ {[%clk 0:00:23.2]} 54. Kg5
{[%clk 0:00:52.3]} 54... fxe4 {[%clk 0:00:22]} 55. Bxg6 {[%clk 0:00:52.9]} 55...
e3 {[%clk 0:00:23.2]} 56. Bd3 {[%clk 0:00:53.8]} 56... e4 {[%clk 0:00:23.9]} 57.
Be2 {[%clk 0:00:52]} 57... Kd6 {[%clk 0:00:23.2]} 58. h5 {[%clk 0:00:53.3]}
58... Kc7 {[%clk 0:00:24.1]} 59. h6 {[%clk 0:00:54.3]} 59... Kb6 {[%clk
0:00:24.6]} 60. h7 {[%clk 0:00:55.1]} 1-0